Cogmind - Beta 16 @@@ ROGUE MODE // 2025.11.26 @ 11:04:00 Player: Red Box Result: Destroyed by S-10 Pest with Light Assault Rifle Performance ------------- Evolutions (1) 500 Regions Visited (6) 1200 Robots Destroyed (72) 360 Value Destroyed (1690) 1690 Prototype IDs (20) 400 Alien Tech Used (0) 0 Bonus (141) 141 TOTAL SCORE: 4291 Bonus ------- Follower Combat Kills 141 Cogmind --------- Core Integrity 0/400 Matter 300/300 Energy 270/310 System Corruption 0% Temperature Cool (20) Movement Walking (190) Ox1 Location -8/Mines Parts ------- > --- POWER (1) -------- Reinforced Fission Core > --- PROPULSION (2) --- Aluminum Leg Aluminum Leg > --- UTILITY (4) ------ Improved Heat Sink Large Storage Unit Gravity Neutralizer Hardened Medium Armor Plating > --- WEAPON (2) ------- Improved EM Shotgun Improved EM Shotgun > --- INVENTORY (15) --- Advanced Myomer Leg Disposable Heat Sink High-capacity Storage Unit High-capacity Battery (250) Large Matter Pod (150) Improved Targeting Computer Experimental Targeting Computer Particle Charger Hardened Medium Armor Plating Hardlight Generator Trap Extractor (1/4 Explosive) Ion Cannon Ion Cannon Improved Grenade Launcher Katana Peak State ------------ > --- POWER ------------ Reinforced Fission Core > --- PROPULSION ------- Aluminum Leg Advanced Myomer Leg > --- UTILITY ---------- Improved Heat Sink Large Storage Unit Gravity Neutralizer Hardened Medium Armor Plating > --- WEAPON ----------- Improved EM Shotgun Improved EM Shotgun > --- INVENTORY -------- Improved Heat Sink Improved Heat Sink High-capacity Storage Unit High-capacity Battery Large Matter Pod Experimental Targeting Computer Hardened Medium Armor Plating Hardlight Generator Trap Extractor Ion Cannon Ion Cannon Katana [Rating: 37] Favorites ----------- Power Cooled Ion Engine Engine Cooled Ion Engine Power Core Reinforced Fission Core Propulsion Improved Treads Treads Improved Treads Leg Aluminum Leg Wheel Compact Wheel Utility Large Storage Unit Device Improved Heat Sink Storage Large Storage Unit Processor Targeting Computer Protection Hardened Medium Armor Plating Weapon Improved EM Shotgun Energy Gun Improved EM Shotgun Energy Cannon Beam Cannon Ballistic Gun Shotgun Launcher Missile Launcher Special Weapon Mining Laser Slashing Weapon Katana Special Melee Weapon Datajack Build | -11 -10 -10 -9 -9 -9 -8 ------- Run | Yrd Mat Min Mat Min Exi Min Slots Evolved 2 | . . . 2 . . . Power . | . . . . . . . Propulsion . | . . . . . . . Utility 2 | . . . 2 . . . Weapon . | . . . . . . . Parts Attached 67 | 7 16 4 28 . 9 3 Power 8 | 1 1 1 3 . 2 . Engine 7 | 1 1 1 3 . 1 . Core 1 | . . . . . 1 . Reactor . | . . . . . . . Propulsion 11 | 2 1 2 3 . 1 2 Treads 4 | . . 1 3 . . . Leg 6 | 2 1 . . . 1 2 Wheel 1 | . . 1 . . . . Hover . | . . . . . . . Flight . | . . . . . . . Utility 26 | 2 5 1 12 . 5 1 Device 10 | 1 2 . 4 . 2 1 Storage 6 | 1 3 . 1 . 1 . Processor 1 | . . . 1 . . . Hackware . | . . . . . . . Protection 9 | . . 1 6 . 2 . Artifact . | . . . . . . . Weapon 22 | 2 9 . 10 . 1 . Energy Gun 5 | 2 . . 3 . . . Energy Cannon 8 | . 4 . 3 . 1 . Ballistic Gun 4 | . 2 . 2 . . . Ballistic Cannon . | . . . . . . . Launcher 2 | . 1 . 1 . . . Special Weapon 1 | . 1 . . . . . Impact Weapon . | . . . . . . . Slashing Weapon 1 | . . . 1 . . . Piercing Weapon . | . . . . . . . Special Melee Weapon 1 | . 1 . . . . . Unidentified Prototypes 1 | . . . 1 . . . Parts Lost 11 | . . . 3 . 8 . Power 3 | . . . 1 . 2 . Propulsion 4 | . . . 2 . 2 . Utility 2 | . . . . . 2 . Weapon 2 | . . . . . 2 . Highest Loss Streak 5 | . . . 1 . 5 . To Critical Strikes 4 | . . . . . 4 . Average Backups 13 | 5 13 14 13 14 12 14 Power . | . . . . 1 1 . Propulsion 1 | 3 4 3 1 . . . Utility 5 | . 4 4 5 7 6 9 Weapon 4 | 1 3 4 5 5 3 3 Tool/Special . | . . . . . . . Unused Backups 28 | . 4 2 5 . 4 13 Power 3 | . . . . . 3 . Propulsion 4 | . 2 1 . . . 1 Utility 12 | . . . 2 . 1 9 Weapon 9 | . 2 1 3 . . 3 Tool/Special . | . . . . . . . Average Slot Usage (%) 98 | . 99 100 99 100 93 99 Engine 10 | . 14 14 10 11 10 . Core 1 | . . . . . . 11 Treads 13 | . . 9 20 22 19 . Leg 8 | . 28 9 . . . 21 Wheel 1 | . . 9 1 . . . Device 12 | . 14 4 10 11 17 21 Storage 11 | . 14 14 11 11 10 11 Processor 5 | . . . 11 11 2 . Protection 8 | . . 9 10 11 11 11 Energy Gun 9 | . . . 10 22 4 21 Energy Cannon 8 | . 25 . 8 . 6 . Ballistic Gun 3 | . . 28 1 . . . Launcher 1 | . . . . . 6 . Peak Build Rating 37 | 9 12 16 25 25 28 37 Average Rating 19 | 5 10 13 20 25 24 31 On Entrance 16 | . 9 12 16 25 25 27 Avg Prop Armor Cover (%) 9 | . . 9 9 . . . Naked Turns . | . . . . . . . Heaviest Build 71 | 14 32 38 43 43 71 56 Greatest Support 46 | 20 20 20 46 46 46 40 Greatest Overweight (x) 10 | . 1 2 2 . 10 1 Average Overweight (x) . | . . 1 . . . 1 Largest Inventory Capacity 20 | 8 15 15 15 15 20 15 Average Capacity 14 | 7 14 15 15 15 15 15 Most Carried 16 | 7 15 15 15 15 16 15 Average Carried 13 | 5 13 14 14 15 12 14 Final Capacity 15 | 8 15 15 15 15 15 15 Final Carried 15 | 7 15 15 15 15 13 15 Class Distribution -------------------- 77% | Mutant 14% | Commander-Mutant 7% | Scavenger-Mutant Dominant Class ---------------- Mutant | -10/Materials Mutant | -10/Mines Mutant | -9/Materials Mutant | -9/Mines Mutant | -9/Exiles Scavenger-Mutant | -8/Mines Resources | -11 -10 -10 -9 -9 -9 -8 ----------- Run | Yrd Mat Min Mat Min Exi Min Matter Collected 1870 | 270 220 342 645 . 343 50 Remotely . | . . . . . . . Salvage Created 2640 | 170 320 166 1373 460 6 145 Parts 129 | 7 26 5 62 22 . 7 Haulers Intercepted 4 | . 1 . 3 . . . Recyclers Shooed 1 | . . . 1 . . . Parts Field Recycled . | . . . . . . . Retrieved Matter . | . . . . . . . Parts Self-Destructed . | . . . . . . . Prevented . | . . . . . . . Parts Restored . | . . . . . . . Kills | -11 -10 -10 -9 -9 -9 -8 ------- Run | Yrd Mat Min Mat Min Exi Min Combat Hostiles Destroyed 53 | . 10 3 23 11 3 3 Guns 21 | . . 3 6 10 1 1 Cannons 16 | . 7 . 9 . . . AOE 12 | . 3 . 4 1 2 2 Classes Destroyed 13 | 2 4 1 4 1 1 . Worker 3 | . 2 . 1 . . . Builder 1 | . . . 1 . . . Tunneler 4 | 4 . . . . . . Hauler 4 | . 1 . 3 . . . Recycler 3 | 1 . . 2 . . . Mechanic 1 | . . 1 . . . . Watcher 5 | . . . 5 . . . Swarmer 15 | . 6 . 6 3 . . Grunt 25 | . 4 2 10 7 . 2 Brawler 2 | . . . . 1 . 1 Duelist 1 | . . . 1 . . . Sentry 7 | . . . 7 . . . Assembled 3 | . . . . . 3 . Best Kill Streak 5 | 4 4 3 5 3 3 3 Combat Bots Only 4 | . 3 2 4 3 3 3 Max Kills in Single Turn 2 | 1 2 1 2 1 1 2 Gunslinging . | . . . . . . . Exploded 2 | . 2 . 2 1 1 2 Melee . | . . . . . . . Uniques/NPCs Destroyed 2 | . . 1 . . 1 . YI-UF0 (-10/Mines) 8R-AWN (-9/Exiles) Combat | -11 -10 -10 -9 -9 -9 -8 -------- Run | Yrd Mat Min Mat Min Exi Min Hostile Shots Fired 267 | . 37 21 99 26 77 7 Missed 68 | . 13 6 30 6 12 1 Hits 199 | . 24 15 69 20 65 6 Melee 1 | . . . . 1 . . Projectile 198 | . 24 15 69 19 65 6 AOE 8 | . . 8 . . . . Critical Strikes 32 | . . . 1 1 30 . Damage Taken 3113 | . 269 345 895 303 1197 104 Core 537 | . 50 81 135 29 224 18 Absorbed by Shields 228 | . . . . . 228 . Core Remaining (%) 73 | 100 . 47 . . . . Volleys Fired 156 | 17 24 9 75 17 7 7 Largest 2 | 2 2 2 2 2 2 2 Hottest 120 | 90 120 46 120 90 90 90 Shots Fired 298 | 34 44 18 145 34 9 14 Gun 138 | 34 . 18 34 34 4 14 Cannon 145 | . 38 . 106 . 1 . Launcher 11 | . 2 . 5 . 4 . Special 4 | . 4 . . . . . Kinetic 36 | . . 18 18 . . . Thermal 137 | 34 42 . 60 . 1 . Explosive 11 | . 2 . 5 . 4 . Electromagnetic 114 | . . . 62 34 4 14 Robot Hit Streak 18 | 10 9 8 18 15 14 5 Robot Miss Streak 5 | 2 3 4 2 4 2 5 Penetration Max . | . . . . . . . Secondary Targets 4 | . . . 2 2 . . Max Gunslinging Chain 1 | . . . 1 1 . . Shots Hit Robots 247 | 23 24 16 108 30 34 12 Core Hits 115 | 6 15 11 51 18 8 6 Critical Kills . | . . . . . . . Critical Parts Destroyed . | . . . . . . . Critical Strikes 4 | 1 . . 1 . 2 . Burn 1 | 1 . . . . . . Corrupt 1 | . . . 1 . . . Sever 2 | . . . . . 2 . Melee Attacks 37 | . . . 1 . 36 . Impact . | . . . . . . . Slashing 33 | . . . 1 . 32 . Piercing . | . . . . . . . Sneak Attacks 4 | . . . . . 4 . Combat Hostiles . | . . . . . . . Follow-up Attacks . | . . . . . . . Damage Inflicted 5838 | 281 612 303 2657 746 1029 210 Guns 1721 | 281 . 303 407 552 37 141 Cannons 2186 | . 430 . 1756 . . . Explosions 1107 | . 182 . 494 194 168 69 Melee 824 | . . . . . 824 . Ramming . | . . . . . . . Kinetic 523 | . . 303 220 . . . Thermal 2063 | 281 430 . 1089 194 . 69 Explosive 639 | . 182 . 289 . 168 . Electromagnetic 1789 | . . . 1059 552 37 141 Impact . | . . . . . . . Slashing 824 | . . . . . 824 . Piercing . | . . . . . . . Highest Corruption . | . . . . . . . Average Corruption . | . . . . . . . Corruption Purged . | . . . . . . . Corruption Blocked . | . . . . . . . Overload Shots . | . . . . . . . Overflow Damage 45 | . . . 38 . 7 . Projectiles 38 | . . . 38 . . . Explosions 7 | . . . . . 7 . Melee . | . . . . . . . Knockbacks . | . . . . . . . Impact . | . . . . . . . Kinetic . | . . . . . . . Secondary . | . . . . . . . Self-Inflicted Damage 191 | . . . 35 53 55 48 Shots 5 | . . . 1 2 1 1 Rammed . | . . . . . . . Targets Rammed . | . . . . . . . Kicked . | . . . . . . . Crushed . | . . . . . . . Highest Temperature 306 | 180 227 21 214 52 . 306 Average Temperature 63 | 72 83 13 40 20 . 147 Received Heat Transfer 616 | . 87 51 312 138 19 9 Siege Activations . | . . . . . . . Martial Activations . | . . . . . . . Shielding Activations . | . . . . . . . Robots Disrupted 1 | . . . 1 . . . Combat Hostiles 1 | . . . 1 . . . Robots Corrupted 3 | . . . 3 . . . Combat Hostiles 3 | . . . 3 . . . Parts Fried 6 | . . . 4 2 . . Impact Corruptions . | . . . . . . . Robots Melted 1 | . . . 1 . . . Combat Hostiles 1 | . . . 1 . . . Parts Melted 10 | 3 3 . 4 . . . Heat Transferred 4007 | 806 888 . 2013 250 . 50 Parts Sabotaged . | . . . . . . . Parts Stolen . | . . . . . . . Parts Stripped . | . . . . . . . Power Chain Reactions 10 | . . . 5 4 . 1 Alert | -11 -10 -10 -9 -9 -9 -8 ------- Run | Yrd Mat Min Mat Min Exi Min Maximum Alert Level 1 | . . . 1 . . . Low Security (%) 73 | 100 100 100 34 100 . 100 Level 1 26 | . . . 65 . . . Level 2 . | . . . . . . . Level 3 . | . . . . . . . Level 4 . | . . . . . . . Level 5 . | . . . . . . . High Security . | . . . . . . . Max Security . | . . . . . . . Peak Influence 272 | 5 111 69 272 153 . 77 Initial 89 | . . 19 . 89 . . Average 81 | 1 15 7 178 38 . 5 Influence Increases 1838 | 25 383 97 978 278 . 77 Destroy 0b10 Robot/C 1080 | . 200 80 520 220 . 60 Destroy 0b10 Robot/NC 105 | 25 15 5 60 . . . Destroy Leader 248 | . 42 10 146 40 . 10 Allied During Kill 61 | . . 2 55 4 . . Trap Triggered on 0b10 10 | . . . 10 . . . Successful Hack 62 | . 28 . 34 . . . Select Force Hacks 90 | . 60 . 30 . . . Disable Machine 45 | . . . 45 . . . Destroy Structure 92 | . 23 . 48 14 . 7 Lose Combat Pursuer 45 | . 15 . 30 . . . Influence Decreases 1838 | 25 331 149 748 431 77 77 Entered New Map 251 | . . 33 . 141 77 . Time Decay 1497 | 25 331 96 678 290 . 77 Lost Part 30 | . . . 30 . . . Lost Ally 60 | . . 20 40 . . . Squads Dispatched 7 | . 4 1 2 . . . Investigation 4 | . 3 . 1 . . . Extermination . | . . . . . . . Reinforcement 2 | . 1 . 1 . . . Assault 1 | . . 1 . . . . Garrison . | . . . . . . . Intercept . | . . . . . . . Searches Triggered . | . . . . . . . Construction Impeded . | . . . . . . . Haulers Reinforced . | . . . . . . . Active Scanning Responses . | . . . . . . . Cargo Convoy Interrupts . | . . . . . . . Stealth | -11 -10 -10 -9 -9 -9 -8 --------- Run | Yrd Mat Min Mat Min Exi Min Distress Signals 7 | . 1 . 6 . . . Communications Jammed . | . . . . . . . Distress Signals . | . . . . . . . Times Spotted 93 | . 15 9 43 11 9 6 Peak Tracking Total 11 | . 3 4 4 3 11 3 Tactical Retreats 7 | . 1 1 2 . 3 . Traps | -11 -10 -10 -9 -9 -9 -8 ------- Run | Yrd Mat Min Mat Min Exi Min Traps Triggered . | . . . . . . . Indirectly . | . . . . . . . Trap Hack Attempts 148 | . 57 . 91 . . . Triggered . | . . . . . . . Disarmed 3 | . 1 . 2 . . . Reprogrammed 13 | . 6 . 7 . . . Reused 3 | . . . 1 . 2 . Traps Extracted 5 | . . . 4 . 1 . Installed 4 | . . . 1 . 3 . Triggered 1 | . . . 1 . . . Most Traps Carried 3 | . . . 3 3 3 1 Machines | -11 -10 -10 -9 -9 -9 -8 ---------- Run | Yrd Mat Min Mat Min Exi Min Machines Disabled 10 | . 1 . 4 . 5 . Max in Single Turn 1 | . 1 . 1 . 1 . Machines Repaired . | . . . . . . . Machines Dismantled . | . . . . . . . Machines Sabotaged . | . . . . . . . Overloaded Fab Kills . | . . . . . . . Hacking | -11 -10 -10 -9 -9 -9 -8 --------- Run | Yrd Mat Min Mat Min Exi Min Machines Accessed 21 | . 9 . 11 . . 1 Terminals 16 | . 7 . 8 . . 1 Fabricators . | . . . . . . . Repair Stations . | . . . . . . . Recycling Units 4 | . 2 . 2 . . . Scanalyzers 1 | . . . 1 . . . Garrison Access . | . . . . . . . Total Hacks 84 | . 35 . 45 . . 4 Successful 55 | . 25 . 30 . . . Failed 28 | . 10 . 14 . . 4 Catastrophic 2 | . 2 . . . . . Database Lockouts 1 | . . . 1 . . . Manual 66 | . 29 . 33 . . 4 Terminals 57 | . 22 . 31 . . 4 Fabricators . | . . . . . . . Repair Stations . | . . . . . . . Recycling Units 19 | . 13 . 6 . . . Scanalyzers 8 | . . . 8 . . . Garrison Access . | . . . . . . . Terminal Hacks 12 | . 4 . 8 . . . Part Schematic 1 | . . . 1 . . . Robot Schematic 1 | . . . 1 . . . Robot Analysis 5 | . 1 . 4 . . . Prototype ID Bank 2 | . 1 . 1 . . . Terminal Index 2 | . 1 . 1 . . . Locate Traps 1 | . 1 . . . . . Fabricator Hacks . | . . . . . . . Repair Station Hacks . | . . . . . . . Recycling Unit Hacks 3 | . 2 . 1 . . . Retrieve Components 3 | . 2 . 1 . . . Scanalyzer 7 | . . . 7 . . . Insert Component 3 | . . . 3 . . . Analyze 3 | . . . 3 . . . Retrieve Study 1 | . . . 1 . . . Garrison Access Hacks . | . . . . . . . Unauthorized Hacks 33 | . 19 . 14 . . . Terminals 22 | . 10 . 12 . . . Assimilate 4 | . 1 . 3 . . . Botnet 6 | . 3 . 3 . . . Operators 2 | . 1 . 1 . . . Skim 10 | . 5 . 5 . . . Fabricators . | . . . . . . . Repair Stations . | . . . . . . . Recycling Units 11 | . 9 . 2 . . . Monitor 1 | . 1 . . . . . Reject 2 | . 2 . . . . . Recyclers 2 | . 2 . . . . . Mask 3 | . 2 . 1 . . . Tunnel 3 | . 2 . 1 . . . Scanalyzers . | . . . . . . . Garrison Access . | . . . . . . . Data Cores Recovered . | . . . . . . . Used . | . . . . . . . Hacking Detections 19 | . 8 . 10 . . 1 Full Trace Events 1 | . 1 . . . . . Feedback Events . | . . . . . . . Feedback Blocked . | . . . . . . . Robot Schematics Acquired 1 | . . . 1 . . . Robots Built . | . . . . . . . Authchips . | . . . . . . . Time . | . . . . . . . Total Robot Build Rating . | . . . . . . . Part Schematics Acquired 4 | . . . 4 . . . Parts Built . | . . . . . . . Authchips . | . . . . . . . Time . | . . . . . . . Total Part Build Rating . | . . . . . . . Part Studies Acquired 1 | . . . 1 . . . Parts Repaired . | . . . . . . . Time . | . . . . . . . Parts Recycled . | . . . . . . . Recycled Matter . | . . . . . . . Retrieved Matter . | . . . . . . . Retrieved Components 23 | . 13 . 10 . . . Parts Scanalyzed 3 | . . . 3 . . . Part Schematics Acquired 3 | . . . 3 . . . Parts Damaged . | . . . . . . . Bothacking | -11 -10 -10 -9 -9 -9 -8 ------------ Run | Yrd Mat Min Mat Min Exi Min Used RIF Installer . | . . . . . . . Robots Hacked 4 | . . . . . 4 . Non-combat 3 | . . . . . 3 . Combat 1 | . . . . . 1 . Robot Hacks Applied 4 | . . . . . 4 . parse_system 4 | . . . . . 4 . Relay Couplers Released . | . . . . . . . Fabnet Peak Effective % . | . . . . . . . Robots Rewired . | . . . . . . . Allies Hacked . | . . . . . . . Hacks Repelled . | . . . . . . . Allies | -11 -10 -10 -9 -9 -9 -8 -------- Run | Yrd Mat Min Mat Min Exi Min Total Allies 7 | . 1 4 2 . . . Largest Group 5 | . 1 4 5 2 2 2 Highest-Rated Group 60 | . 10 50 60 26 26 26 Highest-Rated Ally 31 | . 10 31 16 16 16 16 Total Orders 51 | . 1 6 35 6 3 . STAY 30 | . 1 3 20 4 2 . FOLLOW 21 | . . 3 15 2 1 . Ally Attacks 68 | . . 5 16 . 43 4 Total Damage 604 | . . 87 199 . 268 50 Kills 6 | . . 2 3 . 1 . Allies Corrupted . | . . . . . . . Allies Melted . | . . . . . . . Intel | -11 -10 -10 -9 -9 -9 -8 ------- Run | Yrd Mat Min Mat Min Exi Min Active Infowar (turns) 1076 | 17 1059 . . . . . Terrain 1076 | 17 1059 . . . . . Robot Analysis Total 5 | . 1 . 4 . . . Derelict Logs Recovered 4 | . . 2 . 2 . . Drone Launches . | . . . . . . . Drone Recoveries . | . . . . . . . Exploration | -11 -10 -10 -9 -9 -9 -8 ------------- Run | Yrd Mat Min Mat Min Exi Min Turns Passed 12849 | 142 2305 1301 4246 1559 2225 1071 Spaces Moved 6472 | 68 1141 793 2230 665 1039 536 Core 62 | 11 . . . . 51 . Treads 3633 | . . . 2057 665 911 . Legs 1983 | 57 1141 172 . . 77 536 Wheels 794 | . . 621 173 . . . Hover . | . . . . . . . Flight . | . . . . . . . Fastest Speed 50 | 50 120 130 130 160 50 190 Average Speed 167 | 108 182 143 159 160 182 190 Slowest Speed 550 | 120 190 190 240 160 550 190 Overloaded Moves . | . . . . . . . Propulsion Burnouts . | . . . . . . . Robots Hopped . | . . . . . . . Potential Cave-ins . | . . . . . . . Cave-ins Triggered . | . . . . . . . Exploration Rate (%) 76 | 4 96 91 95 98 66 87 Regions Visited 6 Branch Regions 4 Pre-discovered Areas 10 | . 2 2 4 2 . . Known Exits Taken 2 | . . 1 1 . . . Unknown Exits Taken 4 | 1 1 . . 1 1 . Scrap Searched 4 | . . 2 . 1 . 1 Spaces Dug 3 | . 2 . 1 . . . Terrain Destroyed 126 | . 25 . 51 17 25 8 Melee 1 | . . . 1 . . . Projectile 2 | . 2 . . . . . AOE 123 | . 23 . 50 17 25 8 Terrain Rammed . | . . . . . . . Walls Destroyed . | . . . . . . . Machines Disabled . | . . . . . . . Actions | -11 -10 -10 -9 -9 -9 -8 --------- Run | Yrd Mat Min Mat Min Exi Min Total 8142 | 98 1306 945 2781 1126 1309 577 Wait 1064 | . 32 129 279 445 162 17 Move 6466 | 67 1140 792 2229 664 1038 536 Hop . | . . . . . . . Pick Up 74 | 7 15 5 21 . 18 8 Fast Attach 24 | 7 2 . 8 . 5 2 Attach 19 | . . 2 6 . 9 2 Detach 5 | . . . 1 . 4 . Swap 70 | . 21 2 37 . 9 1 Drop 73 | . 15 6 30 . 18 4 Fire 156 | 17 24 9 75 17 7 7 Melee 37 | . . . 1 . 36 . Ram . | . . . . . . . Kick . | . . . . . . . Crush . | . . . . . . . Escape Stasis . | . . . . . . . Rewire 2 | . . . 2 . . . Trap 152 | . 57 . 92 . 3 . Miscellaneous . | . . . . . . . Route ------- -11/Scrapyard -10/Materials (discovered 5 exits: *Mat x3 / [*Min] / Sub) -10/Mines (discovered 2 exits: *Mat x2) -9/Materials (discovered 5 exits: *Mat x3 / *Min x2) -9/Mines (discovered 4 exits: *Mat x2 / [*Exi] / [*Zio]) -9/Exiles -8/Mines (discovered 1 exit: Mat) History --------- Turn | Location | Event 8 | -11/Scrapyard | Discovered new exit (range 15) 143 | -11/Scrapyard | Entered Materials 144 | -10/Materials | Met a group of wandering Federalists 204 | -10/Materials | Discovered new exit (range 15) 285 | -10/Materials | Discovered new exit (range 9) 314 | -10/Materials | Build established: Mutant 703 | -10/Materials | Discovered new exit (range 8) 1036 | -10/Materials | Identified exit to Materials 1114 | -10/Materials | Learned Storage emergency access door positions 1184 | -10/Materials | Loaded intel: 18 trap records 1244 | -10/Materials | Identified exit to Subcaves 1292 | -10/Materials | Learned Storage trap positions 1378 | -10/Materials | Learned location of 2 exits from Materials 1433 | -10/Materials | Learned 2 Storage zone layouts 2448 | -10/Materials | Entered Mines 2448 | -10/Mines | Accompanied by 1 ally 2462 | -10/Mines | Learned location of Zion (-7) 2626 | -10/Mines | Destroyed YI-UF0 2848 | -10/Mines | A weapon hastily lodged in a ceiling crevice suddenly fell to the ground 3039 | -10/Mines | Found a hidden stash of uninstalled traps 3154 | -10/Mines | Met a Derelict testing a Signal Generator 3168 | -10/Mines | Found Signal Generator 3219 | -10/Mines | Core integrity fell below 50% 3251 | -10/Mines | Assisted by bots powering up and referring to "LRC-V3" 3528 | -10/Mines | Build established: Commander-Mutant 3749 | -10/Mines | Entered Materials 3749 | -9/Materials | Accompanied by 4 allies 3749 | -9/Materials | Evolved 2 slots: Utility x2 3750 | -9/Materials | Identified exit to Materials 3751 | -9/Materials | Identified exit to Mines 5411 | -9/Materials | Build established: Mutant 6384 | -9/Materials | Learned Storage emergency access door positions 6467 | -9/Materials | Loaded intel: 3 trap records 6474 | -9/Materials | Learned Storage trap positions 6475 | -9/Materials | Learned Storage emergency access door positions 6483 | -9/Materials | Learned location of Recycling (-8) 6821 | -9/Materials | Central database locked down 7995 | -9/Materials | Entered Mines 7995 | -9/Mines | Accompanied by 2 allies 8002 | -9/Mines | Received a Rocket Launcher from a helpful Derelict 8568 | -9/Mines | Deemed a non-threat by the Exiles lab entrance 8674 | -9/Mines | Discovered new exit (range 5) 8710 | -9/Mines | A Derelict revealed a hidden shortcut to a safe place 9554 | -9/Mines | Entered Exiles 9554 | -9/Exiles | Accompanied by 2 allies 9593 | -9/Exiles | Met 8R-AWN 9622 | -9/Exiles | Met EX-HEX 9684 | -9/Exiles | Met EX-DEC 9740 | -9/Exiles | Discovered new exit (range 11) 9875 | -9/Exiles | Met EX-BIN 10637 | -9/Exiles | Warned about trapping Exiles lab 11344 | -9/Exiles | Attacked by the Exiles 11455 | -9/Exiles | Core integrity fell below 50% 11524 | -9/Exiles | Allies destroyed 8R-AWN 11532 | -9/Exiles | Lost 5 parts (1p2n1u1w) 11605 | -9/Exiles | Core integrity fell below 20% 11633 | -9/Exiles | Lost 3 parts (1p1u1w) 11638 | -9/Exiles | Found Exp. Targeting Computer 11779 | -9/Exiles | Entered Mines 11779 | -8/Mines | Accompanied by 2 allies 11902 | -8/Mines | Found a Scrap Suit stashed away for nefarious purposes 11906 | -8/Mines | Found Scrap Suit 12132 | -8/Mines | Build established: Scavenger-Mutant 12850 | -8/Mines | Destroyed by S-10 Pest with Light Assault Rifle Last Messages --------------- 12007_ T-07 Excavator is excavating. 12125_ K-01 Serf collects debris. 12128_ Searching scrap... 12128_ Found 48 Matter. 12128_ Found Imp. Targeting Computer. 12128_ Found Particle Charger. 12128_ Found Beam Rifle. 12128_ Found 61 Matter. 12129_ K-01 Serf collects debris. 12136_ Dropped Imp. Heat Sink. 12136_ K-01 Serf collects debris. 12136_ Acquired Imp. Targeting Computer. 12143_ K-01 Serf collects debris. 12340_ Dropped Scrap Suit. 12341_ Acquired Disposable Heat Sink. 12342_ K-01 Serf collects debris. 12450_ Acquired Particle Charger. 12753_ Connecting with Terminal... 12753_ Current location identified: Mines 12845_ K-01 Serf cleans the Laser Drill. Map ----- +----------------------------------------------------+ | ?????????????????????????????????????????????????? | | ??####???????????????????????????????????????????? | | ?## ##??????????????????????????????????????????? | | ## #??????????????????????????????????????????? | | # ##?##??????????????????????????????????????? | | ## ##?????????????????????????????????????? | | #?????????????????????????????????????? | | #??????????????????????????????????????? | | """ ###??????????????????????????????????????? | | """ ##????????????????????????????????????????? | | """ #?????###?????????????????????????????????? | | ##???# ##????????????????????????????????? | | ### ##?# #????????????????????????????????? | | #??## ## #????????????????????????????????? | | #???## #????????????????????????????????? | | ##?##### ##############????????????????????? | | ### ### #####?# #?????????????????? | | ## ##?????# #########????????????????????? | | ## #??????# #????????????????????????????? | | ### #??????# #????????????????????????????? | | ### ###??### #????????????##??????????????? | | [ #### ##????????? k???????????????? | | % ## ######### """?